[Event "Titled Tuesday Blitz April 18 Late 2023"]
[White "Buchenau, Frank"]
[Black "Vargas Rodriguez, Wilver"]
[WhiteFideId "4604350"]
[BlackFideId "3509672"]
[WhiteElo "2157"]
[BlackElo "2224"]
[Result "0-1"]
[Round "05"]
[TimeControl "180+2"]
[Date "2023.04.18"]
[WhiteClock "0:00:51"]
[BlackClock "0:00:09"]

1. e4 {[%clk 0:03:00]}  c5 {[%clk 0:02:59]} 2. Nf3 {[%clk 0:02:43]}  d6 {[%clk 0:02:58]} 3. Bb5+ {[%clk 0:02:42]}  Bd7 {[%clk 0:02:48]} 4. Bxd7+ {[%clk 0:02:42]}  Nxd7 {[%clk 0:02:49]} 5. O-O {[%clk 0:02:41]}  Ngf6 {[%clk 0:02:47]} 6. Qe2 {[%clk 0:02:40]}  g6 {[%clk 0:02:35]} 7. c3 {[%clk 0:02:40]}  Bg7 {[%clk 0:02:35]} 8. d4 {[%clk 0:02:40]}  cxd4 {[%clk 0:02:30]} 9. cxd4 {[%clk 0:02:41]}  e5 {[%clk 0:02:25]} 10. Nc3 {[%clk 0:02:35]}  O-O {[%clk 0:02:17]} 11. Be3 {[%clk 0:02:29]}  exd4 {[%clk 0:02:07]} 12. Nxd4 {[%clk 0:02:24]}  Re8 {[%clk 0:02:06]} 13. Ndb5 {[%clk 0:02:12]}  Nxe4 {[%clk 0:01:25]} 14. Nxe4 {[%clk 0:02:08]}  Rxe4 {[%clk 0:01:24]} 15. Nxd6 {[%clk 0:02:06]}  Rb4 {[%clk 0:01:15]} 16. Rab1 {[%clk 0:01:43]}  Ne5 {[%clk 0:00:35]} 17. Rfd1 {[%clk 0:01:41]}  Qc7 {[%clk 0:00:22]} 18. a3 {[%clk 0:01:35]}  Rh4 {[%clk 0:00:18]} 19. Rbc1 {[%clk 0:01:22]}  Qe7 {[%clk 0:00:18]} 20. g3 {[%clk 0:01:10]}  Rh5 {[%clk 0:00:15]} 21. Bf4 {[%clk 0:01:04]}  Qf6 {[%clk 0:00:12]} 22. Ne4 {[%clk 0:01:02]}  Qf5 {[%clk 0:00:12]} 23. Rd5 {[%clk 0:00:53]}  Nf3+ {[%clk 0:00:10]} 24. Qxf3 {[%clk 0:00:52]}  Qxd5 {[%clk 0:00:10]} 25. Nf6+ {[%clk 0:00:51]}  Bxf6 {[%clk 0:00:09]} 0-1


[Site "https://www.chess.com"]

[Event "Titled Tuesday Blitz April 18 Late 2023"]
[White "Todorovic, Bojan"]
[Black "Oliveira, Tiago Batista"]
[WhiteFideId "917087"]
[BlackFideId "2108291"]
[WhiteElo "2266"]
[BlackElo "1962"]
[Result "1-0"]
[Round "05"]
[TimeControl "180+2"]
[Date "2023.04.18"]
[WhiteClock "0:01:01"]
[BlackClock "0:00:14"]

1. Nf3 {[%clk 0:02:59]}  Nf6 {[%clk 0:02:54]} 2. g3 {[%clk 0:02:57]}  g6 {[%clk 0:02:52]} 3. Bg2 {[%clk 0:02:57]}  Bg7 {[%clk 0:02:52]} 4. O-O {[%clk 0:02:57]}  O-O {[%clk 0:02:51]} 5. c4 {[%clk 0:02:57]}  Nc6 {[%clk 0:02:48]} 6. Nc3 {[%clk 0:02:55]}  e5 {[%clk 0:02:48]} 7. d3 {[%clk 0:02:54]}  d6 {[%clk 0:02:48]} 8. Bg5 {[%clk 0:02:53]}  h6 {[%clk 0:02:47]} 9. Bxf6 {[%clk 0:02:53]}  Qxf6 {[%clk 0:02:45]} 10. Nd5 {[%clk 0:02:51]}  Qd8 {[%clk 0:02:44]} 11. b4 {[%clk 0:02:46]}  Ne7 {[%clk 0:02:44]} 12. Nd2 {[%clk 0:02:40]}  Nxd5 {[%clk 0:02:42]} 13. cxd5 {[%clk 0:02:40]}  f5 {[%clk 0:02:35]} 14. Rc1 {[%clk 0:02:37]}  Rf7 {[%clk 0:02:32]} 15. Qb3 {[%clk 0:02:29]}  Qg5 {[%clk 0:02:12]} 16. Rc2 {[%clk 0:02:26]}  h5 {[%clk 0:01:56]} 17. Rfc1 {[%clk 0:02:23]}  Qd8 {[%clk 0:01:49]} 18. Rc4 {[%clk 0:02:08]}  b5 {[%clk 0:01:47]} 19. R4c2 {[%clk 0:02:02]}  Bb7 {[%clk 0:01:47]} 20. a4 {[%clk 0:01:51]}  a6 {[%clk 0:01:44]} 21. Ra2 {[%clk 0:01:46]}  Qd7 {[%clk 0:01:41]} 22. Rca1 {[%clk 0:01:43]}  Raf8 {[%clk 0:01:34]} 23. axb5 {[%clk 0:01:43]}  Qxb5 {[%clk 0:01:11]} 24. Rc1 {[%clk 0:01:38]}  e4 {[%clk 0:01:00]} 25. Qc4 {[%clk 0:01:17]}  Bxd5 {[%clk 0:00:48]} 26. Qxb5 {[%clk 0:01:15]}  axb5 {[%clk 0:00:48]} 27. Ra7 {[%clk 0:01:12]}  c6 {[%clk 0:00:28]} 28. Rxf7 {[%clk 0:01:09]}  Rxf7 {[%clk 0:00:28]} 29. dxe4 {[%clk 0:01:07]}  fxe4 {[%clk 0:00:25]} 30. Bxe4 {[%clk 0:01:06]}  Bxe4 {[%clk 0:00:19]} 31. Nxe4 {[%clk 0:01:06]}  d5 {[%clk 0:00:18]} 32. Ng5 {[%clk 0:01:06]}  Rf5 {[%clk 0:00:17]} 33. Ne6 {[%clk 0:01:04]}  Re5 {[%clk 0:00:16]} 34. Nd4 {[%clk 0:01:02]}  Re6 {[%clk 0:00:14]} 35. Nxe6 {[%clk 0:01:01]} 1-0


[Site "https://www.chess.com"]

[Event "Titled Tuesday Blitz April 18 Late 2023"]
[White "Seder, Mohammed"]
[Black "Torres Dominguez, David"]
[WhiteFideId "11505567"]
[BlackFideId "2220857"]
[WhiteElo "1862"]
[BlackElo "1999"]
[Result "0-1"]
[Round "05"]
[TimeControl "180+2"]
[Date "2023.04.18"]
[WhiteClock "0:00:05"]
[BlackClock "0:00:17"]

1. e4 {[%clk 0:03:00]}  Nc6 {[%clk 0:02:58]} 2. Nf3 {[%clk 0:03:00]}  e5 {[%clk 0:02:59]} 3. Bb5 {[%clk 0:03:00]}  Nge7 {[%clk 0:02:58]} 4. O-O {[%clk 0:02:59]}  g6 {[%clk 0:02:58]} 5. c3 {[%clk 0:02:56]}  Bg7 {[%clk 0:02:57]} 6. d4 {[%clk 0:02:56]}  O-O {[%clk 0:02:57]} 7. Bg5 {[%clk 0:02:44]}  exd4 {[%clk 0:02:52]} 8. cxd4 {[%clk 0:02:43]}  f6 {[%clk 0:02:50]} 9. Bf4 {[%clk 0:02:37]}  d5 {[%clk 0:02:46]} 10. exd5 {[%clk 0:02:33]}  Nxd5 {[%clk 0:02:45]} 11. Bxc6 {[%clk 0:02:19]}  bxc6 {[%clk 0:02:44]} 12. Bg3 {[%clk 0:02:19]}  Rb8 {[%clk 0:02:39]} 13. Nbd2 {[%clk 0:02:10]}  Rxb2 {[%clk 0:02:36]} 14. Nb3 {[%clk 0:02:08]}  Nc3 {[%clk 0:02:20]} 15. Qd3 {[%clk 0:02:05]}  Ne2+ {[%clk 0:02:00]} 16. Kh1 {[%clk 0:02:03]}  Bf5 {[%clk 0:02:00]} 17. Qc4+ {[%clk 0:01:56]}  Qd5 {[%clk 0:02:00]} 18. Qxd5+ {[%clk 0:01:42]}  cxd5 {[%clk 0:01:55]} 19. Bxc7 {[%clk 0:01:43]}  Rc8 {[%clk 0:01:46]} 20. Bd6 {[%clk 0:01:31]}  Rcc2 {[%clk 0:01:45]} 21. Ne1 {[%clk 0:00:58]}  Rc6 {[%clk 0:01:44]} 22. Ba3 {[%clk 0:00:56]}  Rb1 {[%clk 0:01:40]} 23. Nf3 {[%clk 0:00:47]}  Rxa1 {[%clk 0:01:32]} 24. Rxa1 {[%clk 0:00:48]}  Rc2 {[%clk 0:01:30]} 25. Ne1 {[%clk 0:00:44]}  Rc4 {[%clk 0:01:29]} 26. Bc5 {[%clk 0:00:37]}  a6 {[%clk 0:01:29]} 27. a4 {[%clk 0:00:27]}  Bc2 {[%clk 0:01:17]} 28. Na5 {[%clk 0:00:20]}  Rc3 {[%clk 0:01:05]} 29. Bb4 {[%clk 0:00:20]}  Rc8 {[%clk 0:01:02]} 30. Nb7 {[%clk 0:00:19]}  Nxd4 {[%clk 0:00:58]} 31. Nd6 {[%clk 0:00:19]}  Rc6 {[%clk 0:00:55]} 32. Rc1 {[%clk 0:00:18]}  Bh6 {[%clk 0:00:48]} 33. Ra1 {[%clk 0:00:16]}  Bb3 {[%clk 0:00:36]} 34. a5 {[%clk 0:00:15]}  Nc2 {[%clk 0:00:36]} 35. Nxc2 {[%clk 0:00:15]}  Rxc2 {[%clk 0:00:34]} 36. Nb7 {[%clk 0:00:11]}  Rc1+ {[%clk 0:00:30]} 37. Rxc1 {[%clk 0:00:10]}  Bxc1 {[%clk 0:00:30]} 38. Nc5 {[%clk 0:00:10]}  Bc4 {[%clk 0:00:30]} 39. Nd7 {[%clk 0:00:10]}  Kf7 {[%clk 0:00:27]} 40. Bc3 {[%clk 0:00:11]}  f5 {[%clk 0:00:23]} 41. Ne5+ {[%clk 0:00:11]}  Ke6 {[%clk 0:00:22]} 42. f3 {[%clk 0:00:07]}  Be3 {[%clk 0:00:21]} 43. g3 {[%clk 0:00:06]}  Bb5 {[%clk 0:00:20]} 44. Bb2 {[%clk 0:00:04]}  d4 {[%clk 0:00:20]} 45. Kg2 {[%clk 0:00:04]}  d3 {[%clk 0:00:20]} 46. f4 {[%clk 0:00:02]}  d2 {[%clk 0:00:19]} 47. Kf3 {[%clk 0:00:01]}  d1=Q+ {[%clk 0:00:19]} 48. Kxe3 {[%clk 0:00:02]}  Qb3+ {[%clk 0:00:17]} 49. Kd4 {[%clk 0:00:03]}  Qxb2+ {[%clk 0:00:17]} 50. Kc5 {[%clk 0:00:03]}  Qxe5+ {[%clk 0:00:17]} 51. Kb6 {[%clk 0:00:04]}  Qd6+ {[%clk 0:00:16]} 52. Ka7 {[%clk 0:00:04]}  Qd7+ {[%clk 0:00:16]} 53. Kb6 {[%clk 0:00:04]}  Qc6+ {[%clk 0:00:16]} 54. Ka7 {[%clk 0:00:05]}  Qc7+ {[%clk 0:00:16]} 55. Ka8 {[%clk 0:00:05]}  Bc6# {[%clk 0:00:17]} 0-1


[Site "https://www.chess.com"]

[Event "Titled Tuesday Blitz April 18 Late 2023"]
[White "Pesotskiy, Mikhail"]
[Black "Aqib Javaid Butt"]
[WhiteFideId "34164453"]
[BlackFideId "7801262"]
[WhiteElo "2131"]
[BlackElo "1659"]
[Result "1-0"]
[Round "05"]
[TimeControl "180+2"]
[Date "2023.04.18"]
[WhiteClock "0:00:21"]
[BlackClock "0:00:35"]

1. d4 {[%clk 0:01:35]}  d5 {[%clk 0:02:58]} 2. c4 {[%clk 0:01:36]}  c6 {[%clk 0:02:59]} 3. Nf3 {[%clk 0:01:36]}  Nf6 {[%clk 0:02:59]} 4. Nbd2 {[%clk 0:01:37]}  Bf5 {[%clk 0:02:59]} 5. Nh4 {[%clk 0:01:37]}  Bc8 {[%clk 0:02:58]} 6. Qb3 {[%clk 0:01:38]}  e6 {[%clk 0:02:54]} 7. e3 {[%clk 0:01:38]}  Ne4 {[%clk 0:02:54]} 8. Nhf3 {[%clk 0:01:38]}  Nxd2 {[%clk 0:02:52]} 9. Bxd2 {[%clk 0:01:39]}  Be7 {[%clk 0:02:53]} 10. Bd3 {[%clk 0:01:40]}  Nd7 {[%clk 0:02:52]} 11. O-O {[%clk 0:01:40]}  O-O {[%clk 0:02:51]} 12. Rac1 {[%clk 0:01:39]}  f5 {[%clk 0:02:50]} 13. Bb4 {[%clk 0:01:37]}  Bxb4 {[%clk 0:02:44]} 14. Qxb4 {[%clk 0:01:38]}  Nf6 {[%clk 0:02:44]} 15. Ne5 {[%clk 0:01:37]}  a5 {[%clk 0:02:40]} 16. Qb3 {[%clk 0:01:31]}  Ne4 {[%clk 0:02:40]} 17. Rfd1 {[%clk 0:01:30]}  Qh4 {[%clk 0:02:34]} 18. g3 {[%clk 0:01:29]}  Qh3 {[%clk 0:02:26]} 19. Bf1 {[%clk 0:01:24]}  Qh5 {[%clk 0:02:22]} 20. f3 {[%clk 0:01:21]}  Ng5 {[%clk 0:02:14]} 21. Bg2 {[%clk 0:01:21]}  Nh3+ {[%clk 0:02:12]} 22. Kf1 {[%clk 0:01:21]}  Ng5 {[%clk 0:02:10]} 23. h4 {[%clk 0:01:19]}  Nf7 {[%clk 0:02:05]} 24. Nd3 {[%clk 0:01:19]}  Nd6 {[%clk 0:02:00]} 25. Nf4 {[%clk 0:01:18]}  Qf7 {[%clk 0:01:58]} 26. c5 {[%clk 0:01:11]}  Nc4 {[%clk 0:01:53]} 27. Qc3 {[%clk 0:01:02]}  a4 {[%clk 0:01:36]} 28. b3 {[%clk 0:01:00]}  axb3 {[%clk 0:01:30]} 29. axb3 {[%clk 0:01:01]}  Na3 {[%clk 0:01:27]} 30. Nd3 {[%clk 0:00:48]}  Nb5 {[%clk 0:01:25]} 31. Qb2 {[%clk 0:00:47]}  Qc7 {[%clk 0:01:20]} 32. Kf2 {[%clk 0:00:46]}  b6 {[%clk 0:01:16]} 33. Ra1 {[%clk 0:00:44]}  Bb7 {[%clk 0:01:15]} 34. b4 {[%clk 0:00:35]}  Rxa1 {[%clk 0:01:11]} 35. Rxa1 {[%clk 0:00:34]}  Ra8 {[%clk 0:01:11]} 36. Bf1 {[%clk 0:00:26]}  Qd8 {[%clk 0:00:58]} 37. Rxa8 {[%clk 0:00:21]}  Bxa8 {[%clk 0:00:53]} 38. Qa1 {[%clk 0:00:21]}  Bb7 {[%clk 0:00:50]} 39. cxb6 {[%clk 0:00:18]}  Qxb6 {[%clk 0:00:49]} 40. Nc5 {[%clk 0:00:19]}  Nd6 {[%clk 0:00:45]} 41. Qa5 {[%clk 0:00:20]}  Qxa5 {[%clk 0:00:34]} 42. bxa5 {[%clk 0:00:21]}  Kf7 {[%clk 0:00:34]} 43. Nxb7 {[%clk 0:00:20]}  Nxb7 {[%clk 0:00:35]} 44. a6 {[%clk 0:00:21]} 1-0


[Site "https://www.chess.com"]

[Event "Titled Tuesday Blitz April 18 Late 2023"]
[White "Golubev, Mikhail"]
[Black "Ardila, Oscar Humberto"]
[WhiteFideId "14100983"]
[BlackFideId "4404742"]
[WhiteElo "2374"]
[BlackElo "1918"]
[Result "1-0"]
[Round "05"]
[TimeControl "180+2"]
[Date "2023.04.18"]
[WhiteClock "0:00:08"]
[BlackClock "0:00:03"]

1. e4 {[%clk 0:03:00]}  e5 {[%clk 0:02:55]} 2. Nf3 {[%clk 0:03:00]}  Nf6 {[%clk 0:02:54]} 3. Nc3 {[%clk 0:02:58]}  Nc6 {[%clk 0:02:53]} 4. g3 {[%clk 0:02:59]}  d6 {[%clk 0:02:50]} 5. Bg2 {[%clk 0:02:58]}  g6 {[%clk 0:02:50]} 6. d4 {[%clk 0:02:53]}  exd4 {[%clk 0:02:48]} 7. Nxd4 {[%clk 0:02:52]}  Nxd4 {[%clk 0:02:44]} 8. Qxd4 {[%clk 0:02:51]}  Bg7 {[%clk 0:02:45]} 9. O-O {[%clk 0:02:34]}  O-O {[%clk 0:02:44]} 10. Qd3 {[%clk 0:02:21]}  Re8 {[%clk 0:02:43]} 11. h3 {[%clk 0:02:16]}  Be6 {[%clk 0:02:31]} 12. Bg5 {[%clk 0:02:06]}  h6 {[%clk 0:02:30]} 13. Be3 {[%clk 0:02:06]}  Qd7 {[%clk 0:02:23]} 14. f4 {[%clk 0:01:57]}  Bxh3 {[%clk 0:02:19]} 15. f5 {[%clk 0:01:45]}  Bxg2 {[%clk 0:02:10]} 16. Kxg2 {[%clk 0:01:45]}  Qc6 {[%clk 0:01:54]} 17. fxg6 {[%clk 0:01:38]}  fxg6 {[%clk 0:01:54]} 18. Rxf6 {[%clk 0:01:09]}  Bxf6 {[%clk 0:01:52]} 19. Nd5 {[%clk 0:01:10]}  Bg7 {[%clk 0:01:39]} 20. Rf1 {[%clk 0:01:09]}  Re6 {[%clk 0:01:22]} 21. Bd4 {[%clk 0:00:40]}  Rae8 {[%clk 0:01:05]} 22. Bxg7 {[%clk 0:00:29]}  Kxg7 {[%clk 0:01:05]} 23. Qf3 {[%clk 0:00:28]}  Qd7 {[%clk 0:00:14]} 24. Nf6 {[%clk 0:00:25]}  Qe7 {[%clk 0:00:11]} 25. Nxe8+ {[%clk 0:00:24]}  Qxe8 {[%clk 0:00:11]} 26. Qc3+ {[%clk 0:00:24]}  Kg8 {[%clk 0:00:08]} 27. Qxc7 {[%clk 0:00:24]}  Rxe4 {[%clk 0:00:08]} 28. Qxb7 {[%clk 0:00:22]}  Re2+ {[%clk 0:00:07]} 29. Kh1 {[%clk 0:00:21]}  Qe4+ {[%clk 0:00:07]} 30. Qxe4 {[%clk 0:00:20]}  Rxe4 {[%clk 0:00:08]} 31. Rf6 {[%clk 0:00:20]}  Kg7 {[%clk 0:00:07]} 32. Rxd6 {[%clk 0:00:19]}  Re2 {[%clk 0:00:08]} 33. Rc6 {[%clk 0:00:19]}  h5 {[%clk 0:00:07]} 34. a4 {[%clk 0:00:18]}  Kh6 {[%clk 0:00:08]} 35. Rc5 {[%clk 0:00:17]}  Kg7 {[%clk 0:00:05]} 36. b4 {[%clk 0:00:17]}  Kf6 {[%clk 0:00:05]} 37. b5 {[%clk 0:00:16]}  Ke7 {[%clk 0:00:05]} 38. a5 {[%clk 0:00:15]}  Kd7 {[%clk 0:00:05]} 39. b6 {[%clk 0:00:13]}  axb6 {[%clk 0:00:04]} 40. axb6 {[%clk 0:00:13]}  Re1+ {[%clk 0:00:05]} 41. Kg2 {[%clk 0:00:12]}  Rb1 {[%clk 0:00:05]} 42. Rc7+ {[%clk 0:00:10]}  Kd6 {[%clk 0:00:05]} 43. Rg7 {[%clk 0:00:09]}  g5 {[%clk 0:00:04]} 44. Rxg5 {[%clk 0:00:09]}  Ke6 {[%clk 0:00:03]} 45. Rxh5 {[%clk 0:00:08]} 1-0


[Site "https://www.chess.com"]

[Event "Titled Tuesday Blitz April 18 Late 2023"]
[White "Vaglio Munoz, Jaime"]
[Black "Eisa Mohmood, Alkhoori"]
[WhiteFideId "6500145"]
[BlackFideId "9316116"]
[WhiteElo "2199"]
[BlackElo "1310"]
[Result "1/2-1/2"]
[Round "05"]
[TimeControl "180+2"]
[Date "2023.04.18"]
[WhiteClock "0:00:34"]
[BlackClock "0:00:13"]

1. Nf3 {[%clk 0:02:56]}  Nf6 {[%clk 0:02:58]} 2. b3 {[%clk 0:02:55]}  e6 {[%clk 0:02:57]} 3. Bb2 {[%clk 0:02:54]}  d5 {[%clk 0:02:58]} 4. g3 {[%clk 0:02:54]}  Be7 {[%clk 0:02:59]} 5. Bg2 {[%clk 0:02:54]}  O-O {[%clk 0:02:59]} 6. O-O {[%clk 0:02:54]}  c5 {[%clk 0:03:00]} 7. d3 {[%clk 0:02:54]}  Nc6 {[%clk 0:03:00]} 8. Nbd2 {[%clk 0:02:53]}  b6 {[%clk 0:02:56]} 9. Re1 {[%clk 0:02:52]}  Bb7 {[%clk 0:02:55]} 10. e4 {[%clk 0:02:52]}  d4 {[%clk 0:02:50]} 11. Nf1 {[%clk 0:02:48]}  e5 {[%clk 0:02:50]} 12. h4 {[%clk 0:02:47]}  Ne8 {[%clk 0:02:50]} 13. N1h2 {[%clk 0:02:38]}  Qd7 {[%clk 0:02:48]} 14. Bc1 {[%clk 0:02:30]}  Nd6 {[%clk 0:02:44]} 15. a4 {[%clk 0:02:29]}  a6 {[%clk 0:02:39]} 16. Qe2 {[%clk 0:02:28]}  b5 {[%clk 0:02:37]} 17. Qf1 {[%clk 0:02:27]}  Rac8 {[%clk 0:02:33]} 18. Bd2 {[%clk 0:02:25]}  Rfe8 {[%clk 0:02:23]} 19. axb5 {[%clk 0:02:24]}  axb5 {[%clk 0:02:23]} 20. Bh3 {[%clk 0:02:24]}  f5 {[%clk 0:02:19]} 21. exf5 {[%clk 0:02:14]}  Nxf5 {[%clk 0:02:19]} 22. Nxe5 {[%clk 0:02:13]}  Nxe5 {[%clk 0:02:20]} 23. Rxe5 {[%clk 0:02:13]}  Qc6 {[%clk 0:02:16]} 24. Bg2 {[%clk 0:02:01]}  Qxg2+ {[%clk 0:02:15]} 25. Qxg2 {[%clk 0:02:02]}  Bxg2 {[%clk 0:02:16]} 26. Kxg2 {[%clk 0:02:02]}  g6 {[%clk 0:02:11]} 27. Rae1 {[%clk 0:02:00]}  Kf7 {[%clk 0:02:11]} 28. Ng4 {[%clk 0:02:00]}  Bf8 {[%clk 0:02:08]} 29. Rxe8 {[%clk 0:01:54]}  Rxe8 {[%clk 0:02:08]} 30. Ne5+ {[%clk 0:01:54]}  Kf6 {[%clk 0:02:00]} 31. f4 {[%clk 0:01:54]}  Bd6 {[%clk 0:01:55]} 32. Ng4+ {[%clk 0:01:40]}  Kf7 {[%clk 0:01:54]} 33. Rxe8 {[%clk 0:01:39]}  Kxe8 {[%clk 0:01:55]} 34. Nf6+ {[%clk 0:01:39]}  Ke7 {[%clk 0:01:51]} 35. Nxh7 {[%clk 0:01:39]}  Ke6 {[%clk 0:01:48]} 36. Kf3 {[%clk 0:01:38]}  Kd5 {[%clk 0:01:48]} 37. Nf6+ {[%clk 0:01:37]}  Ke6 {[%clk 0:01:48]} 38. Ne4 {[%clk 0:01:36]}  Be7 {[%clk 0:01:48]} 39. Be1 {[%clk 0:01:35]}  Kd5 {[%clk 0:01:48]} 40. Ng5 {[%clk 0:01:25]}  Ne3 {[%clk 0:01:43]} 41. c4+ {[%clk 0:01:17]}  Kc6 {[%clk 0:01:26]} 42. Bd2 {[%clk 0:01:13]}  Nc2 {[%clk 0:01:18]} 43. Ne4 {[%clk 0:01:11]}  Na1 {[%clk 0:01:17]} 44. g4 {[%clk 0:01:04]}  Nxb3 {[%clk 0:01:16]} 45. h5 {[%clk 0:01:04]}  gxh5 {[%clk 0:01:14]} 46. gxh5 {[%clk 0:01:04]}  Bf8 {[%clk 0:00:33]} 47. Be1 {[%clk 0:00:57]}  Nc1 {[%clk 0:00:32]} 48. cxb5+ {[%clk 0:00:54]}  Kxb5 {[%clk 0:00:31]} 49. f5 {[%clk 0:00:54]}  Nxd3 {[%clk 0:00:30]} 50. Bd2 {[%clk 0:00:54]}  c4 {[%clk 0:00:29]} 51. f6 {[%clk 0:00:54]}  c3 {[%clk 0:00:26]} 52. Bxc3 {[%clk 0:00:45]}  dxc3 {[%clk 0:00:27]} 53. Nxc3+ {[%clk 0:00:45]}  Kc4 {[%clk 0:00:27]} 54. Ne4 {[%clk 0:00:45]}  Kd5 {[%clk 0:00:20]} 55. Ng5 {[%clk 0:00:42]}  Ne5+ {[%clk 0:00:20]} 56. Kf4 {[%clk 0:00:41]}  Nd3+ {[%clk 0:00:20]} 57. Kf5 {[%clk 0:00:41]}  Nc5 {[%clk 0:00:18]} 58. f7 {[%clk 0:00:40]}  Nd7 {[%clk 0:00:14]} 59. Ne6 {[%clk 0:00:39]}  Kd6 {[%clk 0:00:12]} 60. Nf4 {[%clk 0:00:35]}  Ke7 {[%clk 0:00:11]} 61. Kg6 {[%clk 0:00:35]}  Ne5+ {[%clk 0:00:11]} 62. Kf5 {[%clk 0:00:34]}  Nxf7 {[%clk 0:00:12]} 63. Ng6+ {[%clk 0:00:34]}  Ke8 {[%clk 0:00:11]} 64. Nxf8 {[%clk 0:00:33]}  Kxf8 {[%clk 0:00:12]} 65. Kg6 {[%clk 0:00:33]}  Kg8 {[%clk 0:00:12]} 66. h6 {[%clk 0:00:34]}  Nxh6 {[%clk 0:00:13]} 1/2-1/2


[Site "https://www.chess.com"]

[Event "Titled Tuesday Blitz April 18 Late 2023"]
[White "Ng, Gary"]
[Black "Fuzesabonyilaci"]
[WhiteFideId "2604914"]
[WhiteElo "2292"]
[BlackElo "2334"]
[Result "1-0"]
[Round "05"]
[TimeControl "180+2"]
[Date "2023.04.18"]
[WhiteClock "0:00:24"]
[BlackClock "0:00:04"]

1. d4 {[%clk 0:03:00]}  Nf6 {[%clk 0:02:58]} 2. Bf4 {[%clk 0:03:01]}  g6 {[%clk 0:02:51]} 3. Nc3 {[%clk 0:03:01]}  d5 {[%clk 0:02:46]} 4. e3 {[%clk 0:03:01]}  c6 {[%clk 0:02:37]} 5. h4 {[%clk 0:03:00]}  h5 {[%clk 0:02:27]} 6. Nf3 {[%clk 0:02:59]}  Bg7 {[%clk 0:02:27]} 7. Ne5 {[%clk 0:02:59]}  Nbd7 {[%clk 0:02:26]} 8. Be2 {[%clk 0:02:59]}  Nxe5 {[%clk 0:02:25]} 9. Bxe5 {[%clk 0:02:59]}  O-O {[%clk 0:02:25]} 10. Qd2 {[%clk 0:02:57]}  Be6 {[%clk 0:02:06]} 11. O-O-O {[%clk 0:02:56]}  c5 {[%clk 0:01:57]} 12. dxc5 {[%clk 0:02:52]}  Ne4 {[%clk 0:01:57]} 13. Nxe4 {[%clk 0:02:41]}  Bxe5 {[%clk 0:01:55]} 14. Ng5 {[%clk 0:02:38]}  Rc8 {[%clk 0:01:51]} 15. f4 {[%clk 0:02:11]}  Bg7 {[%clk 0:01:45]} 16. Nxe6 {[%clk 0:02:05]}  fxe6 {[%clk 0:01:45]} 17. g4 {[%clk 0:02:06]}  Rxc5 {[%clk 0:01:40]} 18. gxh5 {[%clk 0:02:04]}  Qb6 {[%clk 0:01:39]} 19. c3 {[%clk 0:01:46]}  Rfc8 {[%clk 0:01:33]} 20. Bd3 {[%clk 0:01:43]}  Rxc3+ {[%clk 0:01:06]} 21. bxc3 {[%clk 0:01:44]}  Bxc3 {[%clk 0:00:40]} 22. Qc2 {[%clk 0:01:16]}  Bb2+ {[%clk 0:00:30]} 23. Kd2 {[%clk 0:01:16]}  Qb4+ {[%clk 0:00:18]} 24. Ke2 {[%clk 0:01:14]}  Rxc2+ {[%clk 0:00:18]} 25. Bxc2 {[%clk 0:01:15]}  gxh5 {[%clk 0:00:16]} 26. Rhg1+ {[%clk 0:01:13]}  Kf8 {[%clk 0:00:16]} 27. Rg5 {[%clk 0:01:05]}  Bf6 {[%clk 0:00:13]} 28. Rxh5 {[%clk 0:01:01]}  Qc4+ {[%clk 0:00:13]} 29. Bd3 {[%clk 0:00:59]}  Qxa2+ {[%clk 0:00:13]} 30. Rd2 {[%clk 0:01:00]}  Qb3 {[%clk 0:00:09]} 31. Rh7 {[%clk 0:01:00]}  Ke8 {[%clk 0:00:09]} 32. h5 {[%clk 0:00:56]}  Bc3 {[%clk 0:00:08]} 33. Bg6+ {[%clk 0:00:54]}  Kd7 {[%clk 0:00:08]} 34. Rc2 {[%clk 0:00:54]}  Bb4 {[%clk 0:00:06]} 35. Rh8 {[%clk 0:00:50]}  Qa4 {[%clk 0:00:03]} 36. Rcc8 {[%clk 0:00:49]}  Qb5+ {[%clk 0:00:03]} 37. Kf2 {[%clk 0:00:48]}  Qa5 {[%clk 0:00:02]} 38. Kf3 {[%clk 0:00:39]}  Be1 {[%clk 0:00:03]} 39. h6 {[%clk 0:00:32]}  d4 {[%clk 0:00:04]} 40. Rhd8+ {[%clk 0:00:24]} 1-0


[Site "https://www.chess.com"]